lending/lending_fUSD_20240807
["ID","MTS","AMOUNT","RATE_DAILY","PERIOD"]
[334377570,1723005040500,-150.0,0.00010669,2]
[334377571,1723005040509,-19957.90092708,0.0001067,2]
[334377572,1723005040519,-7220.81477213,0.000107,2]
[334377573,1723005041240,-547.52749393,0.000107,2]
[334377574,1723005041251,-3884.44144592,0.000107,2]
[334377575,1723005041296,-1247.19195163,0.000107,2]
[334377576,1723005041307,-730.07124766,0.000107,2]
[334377577,1723005041362,-395.48039178,0.000107,2]
[334377578,1723005041373,-7219.54738981,0.000107,2]
[334377579,1723005041385,-571.5594,0.000107,2]
[334377580,1723005041428,-731.17635156,0.000107,2]
[334377581,1723005041439,-5859.33696734,0.000107,2]
[334377582,1723005041451,-315.0276466,0.000107,2]
[334377583,1723005041539,-574.03358918,0.000107,2]
[334377730,1723005043042,-5712.6,0.000107,2]
[334377731,1723005043053,-559.40606601,0.000107,2]
[334377732,1723005043096,-1145.05554,0.000107,2]
[334377733,1723005043107,-301.616,0.000107,2]
[334377734,1723005043153,-13914.31904645,0.000107,2]
[334377735,1723005043163,-150.0,0.00010742,2]
[334377737,1723005043172,-150.0,0.00010767,2]
[334377739,1723005043181,-200.0,0.00010773,2]
[334377741,1723005043194,-150.0,0.00010773,2]
[334377743,1723005043204,-150.0,0.00010789,2]
[334377745,1723005043214,-150.0,0.00010795,2]
[334377747,1723005043223,-150.0,0.00010796,2]
[334377749,1723005043232,-245000.0,0.000108,2]
[334377750,1723005043242,-500.0,0.000108,2]
[334377751,1723005043252,-91087.7446,0.000108,2]
[334377752,1723005043261,-1000.0,0.000108,2]
[334377753,1723005043272,-12817.79331306,0.000108,2]
[334377754,1723005043282,-1000.0,0.000108,2]
[334377755,1723005043291,-150.0,0.00010822,2]
[334377756,1723005043302,-150.0,0.00010823,2]
[334377757,1723005043311,-150.0,0.00010841,2]
[334377758,1723005043323,-150.0,0.00010843,2]
[334377759,1723005043333,-150.0,0.00010846,2]
[334377760,1723005043342,-150.0,0.00010852,2]
[334377761,1723005043351,-150.0,0.00010854,2]
[334377762,1723005043360,-150.0,0.00010863,2]
[334377763,1723005043369,-150.0,0.00010884,2]
[334377764,1723005043379,-150.0,0.00010888,2]
[334377765,1723005043388,-150.0,0.0001089,2]
[334377766,1723005043398,-2816.1748,0.0001089,2]
[334377767,1723005043407,-1243.03003071,0.00010899,2]
[334377768,1723005043417,-1243.03003071,0.00010899,2]
[334377769,1723005043426,-1243.03003071,0.00010899,2]
[334377770,1723005043437,-1243.03003071,0.00010899,2]
[334377771,1723005043447,-1243.03003071,0.00010899,2]
[334377772,1723005043456,-1243.03003071,0.00010899,2]
[334377773,1723005043465,-1243.03003071,0.00010899,2]
[334377774,1723005043475,-1243.03003071,0.00010899,2]
[334377775,1723005043484,-1243.03003071,0.00010899,2]
[334377776,1723005043494,-7500.0,0.000109,2]
[334377777,1723005043503,-169.35858077,0.000109,2]
[334377778,1723005043513,-1857.74454502,0.000109,2]
[334377779,1723005043522,-1243.03003071,0.000109,2]
[334377780,1723005043531,-150.0,0.00010904,2]
[334377781,1723005043540,-150.0,0.00010905,2]
[334377782,1723005043549,-150.0,0.00010911,2]
[334377783,1723005043559,-712.0,0.00010913,2]
[334377784,1723005043569,-150.0,0.00010914,2]
[334377785,1723005043579,-150.0,0.00010939,2]
[334377786,1723005043588,-150.0,0.00010945,2]
[334377787,1723005043597,-150.0,0.00010945,2]
[334377789,1723005043606,-500.0,0.00010958,2]
[334377791,1723005043616,-500.0,0.00010958,2]
[334377793,1723005043626,-263.81472918,0.00010958,2]
[334377794,1723005043635,-500.0,0.00010958,2]
[334377795,1723005043644,-367.83418943,0.00010958,2]
[334377796,1723005043653,-413.93775101,0.00010958,2]
[334377798,1723005043662,-500.0,0.00010958,2]
[334377799,1723005043671,-500.0,0.00010958,2]
[334377800,1723005043680,-150.98400444,0.00010958,2]
[334377801,1723005043689,-274.61550049,0.00010958,2]
[334377802,1723005043699,-500.0,0.00010958,2]
[334377803,1723005043708,-833.33,0.00010958,2]
[334377804,1723005043717,-647.97,0.00010958,2]
[334377805,1723005043725,-500.0,0.00010958,2]
[334377806,1723005043735,-500.0,0.00010958,2]
[334377807,1723005043743,-500.0,0.00010958,2]
[334377808,1723005043753,-3675.62,0.00010958,2]
[334377809,1723005043763,-200.0,0.00010959,2]
[334377810,1723005043773,-2000.0,0.00010959,2]
[334377811,1723005043784,-250.0,0.00010959,2]
[334377812,1723005043794,-150.0,0.00010969,2]
[334377813,1723005043803,-624.0,0.00010973,2]
[334377814,1723005043813,-167.85,0.00010987,2]
[334377815,1723005043824,-150.0,0.00010988,2]
[334377816,1723005043834,-1122.43115483,0.00010993,2]
[334377817,1723005043847,-2553.18884517,0.00010993,2]
[334377818,1723005043856,-5926.57635753,0.00010994,2]
[334377819,1723005043867,-822.33658662,0.00010994,2]
[334377820,1723005044110,-893.44460385,0.00010994,2]
[334377821,1723005044119,-130.37856696,0.00010996,2]
[334377822,1723005044130,-702.95143304,0.00010996,2]
[334377823,1723005044139,-500.0,0.00010996,2]
[334377824,1723005044148,-255.99017022,0.00010997,2]
[334377825,1723005044157,-2047.92136176,0.00010997,2]
[334377826,1723005044166,-154.6213067,0.00010998,2]
[334377827,1723005044176,-192.0,0.00010999,2]
[334377828,1723005044186,-150.01,0.00010999,2]
[334377829,1723005044198,-1421.4621139,0.00010999,2]
[334377830,1723005044207,-1000.0,0.00010999,2]
[334377831,1723005044216,-1000.0,0.00010999,2]
[334377832,1723005044225,-787.37097157,0.00010999,2]
[334377833,1723005044237,-212.62902843,0.00010999,2]
[334377835,1723005044247,-1000.0,0.00010999,2]
[334377836,1723005044256,-1000.0,0.00010999,2]
[334377837,1723005044267,-500.0,0.00010999,2]
[334377838,1723005044276,-833.33,0.00010999,2]
[334377839,1723005044285,-833.33,0.00010999,2]
[334377840,1723005044293,-833.33,0.00010999,2]
[334377841,1723005044302,-833.33,0.00010999,2]
[334377842,1723005044311,-833.33,0.00010999,2]
[334377843,1723005044322,-833.33,0.00010999,2]
[334377844,1723005044331,-833.33,0.00010999,2]
[334377845,1723005044341,-833.33,0.00010999,2]
[334377846,1723005044350,-833.33,0.00010999,2]
[334377847,1723005044360,-833.33,0.00010999,2]
[334377848,1723005044369,-833.33,0.00010999,2]
[334377849,1723005044378,-833.33,0.00010999,2]
[334377850,1723005044387,-833.33,0.00010999,2]
[334377851,1723005044397,-833.33,0.00010999,2]
[334377852,1723005044406,-833.33,0.00010999,2]
[334377853,1723005044415,-833.33,0.00010999,2]
[334377854,1723005044425,-833.33,0.00010999,2]
[334377855,1723005044435,-833.33,0.00010999,2]
[334377856,1723005044445,-833.33,0.00010999,2]
[334377857,1723005044455,-833.33,0.00010999,2]
[334377858,1723005044465,-833.33,0.00010999,2]
[334377859,1723005044474,-833.41,0.00010999,2]
[334377860,1723005044483,-500.0,0.00010999,2]
[334377861,1723005044493,-500.0,0.00010999,2]
[334377862,1723005044503,-500.0,0.00010999,2]
[334377863,1723005044514,-500.0,0.00010999,2]
[334377864,1723005044523,-500.0,0.00010999,2]
[334377865,1723005044533,-500.0,0.00010999,2]
[334377866,1723005044542,-500.0,0.00010999,2]
[334377867,1723005044551,-500.0,0.00010999,2]
[334377868,1723005044560,-300.0,0.00010999,2]
[334377869,1723005044573,-500.0,0.00010999,2]
[334377870,1723005044584,-597.71,0.00010999,2]
[334377871,1723005044593,-500.0,0.00010999,2]
[334377872,1723005044602,-150.0,0.00010999,2]
[334377873,1723005044612,-3675.62,0.00010999,2]
[334377874,1723005044622,-1122.0,0.00011,2]
[334377875,1723005044630,-82214.71662017,0.00011,2]
[334377876,1723005044641,-102702.24365123,0.00011,2]
[334377877,1723005044650,-5460.2306199,0.00011,2]
[334377878,1723005044662,-5938.52344525,0.00011,2]
[334377879,1723005044673,-1260.46378746,0.00011,2]
[334377880,1723005044684,-840.64392545,0.00011,2]
[334377881,1723005046688,-2229.4222777,0.00010994,2]
[334377882,1723005046698,-143.39292767,0.00010999,2]
[334377883,1723005046709,-1002.44274149,0.00010999,2]
[334377884,1723005046749,-2529.78433084,0.00010999,2]
[334377885,1723005046759,-3675.62,0.00010999,2]
[334377886,1723005046768,-1394.22969427,0.00010999,2]
[334377887,1723005046779,-1089.88117537,0.00010999,2]
[334377888,1723005046807,-1191.50913036,0.00010999,2]
[334377889,1723005046817,-3675.62,0.00010999,2]
[334377890,1723005046827,-3675.62,0.00010999,2]
[334377891,1723005046837,-2630.52243403,0.00010999,2]
[334377892,1723005046848,-328.97144833,0.00010999,2]
[334377893,1723005046859,-716.12611764,0.00010999,2]
[334377894,1723005046868,-3675.62,0.00010999,2]
[334377895,1723005046877,-3675.62,0.00010999,2]
[334377896,1723005046887,-3675.62,0.00010999,2]
[334377897,1723005046895,-2494.38968325,0.00010999,2]
[334377898,1723005046908,-1181.23031675,0.00010999,2]
[334377899,1723005046917,-132.64833616,0.00010999,2]
[334377900,1723005046928,-375.76220257,0.00010999,2]
[334377901,1723005046939,-3167.20946127,0.00010999,2]
[334377902,1723005046948,-3675.62,0.00010999,2]
[334377903,1723005046957,-126190.48378889,0.00011,2]
[334377904,1723005046974,-470.08,0.00011,2]
[334377905,1723005046992,-361.14764114,0.00011,2]
[334377906,1723005047006,-451.81,0.00011,2]
[334377907,1723005047018,-824.59977352,0.00011,2]
[334377908,1723005047030,-2497.79507697,0.00011,2]
[334377909,1723005047041,-1462.76416002,0.00011,2]
[334377910,1723005047052,-2335.18041205,0.00011,2]
[334377911,1723005047062,-1491.15000001,0.00011,2]
[334377912,1723005047085,-2014.74514686,0.00011,2]
[334377913,1723005047096,-1383.40857251,0.00011,2]
[334377915,1723005056342,1047.01,9.052e-05,2]
[334377930,1723005275589,4066.57176164,9.052e-05,2]
[334377931,1723005282172,692.80235,9.052e-05,2]
[334377932,1723005284545,168.50858024,9.052e-05,2]
[334377954,1723005460963,162.69,0.00021589,30]
[334377955,1723005549327,1037.53,8.219e-05,2]
[334377956,1723005592081,1797.2,9.514e-05,2]
[334377957,1723005645559,23900.0,9.514e-05,2]
[334377959,1723005810349,427.2,9.543e-05,2]
[334377960,1723005872868,90418.83010505,9.543e-05,2]
[334377961,1723005902704,250.0,9.55e-05,2]
[334377963,1723006099984,1000.0,0.00024658,30]
[334377965,1723006124659,985.65,8.219e-05,2]
[334377967,1723006146335,1000.0,0.00024658,30]
[334377972,1723006167410,-170.38,9.58e-05,2]
[334377974,1723006167436,-834.76,9.626e-05,2]
[334377975,1723006167466,-6450.63877851,9.636e-05,2]
[334377976,1723006167527,-7455.77877851,9.636e-05,2]
[334377977,1723006192200,-7754.00992965,9.636e-05,2]
[334377978,1723006192231,-2239.57251333,9.636e-05,2]
[334377979,1723006192257,-468.46194468,9.652e-05,2]
[334377980,1723006208363,1000.0,0.00024658,30]
[334377984,1723006232223,-104.33805532,9.652e-05,2]
[334377985,1723006232233,-898.6,9.947e-05,2]
[334377986,1723006232242,-1550.0,0.0001,2]
[334377987,1723006232252,-150.0,0.0001021,2]
[334377988,1723006232261,-300.0,0.0001021,2]
[334377989,1723006232270,-50000.0,0.00010211,2]
[334377990,1723006232279,-8535.80532064,0.00010211,2]
[334377991,1723006232289,-499.99,0.00010212,2]
[334377992,1723006232298,-985.65,0.00010456,2]
[334377993,1723006232307,-998.001,0.00010535,2]
[334377994,1723006232318,-1188.8746,0.000106,2]
[334377995,1723006232327,-1000.0,0.000106,2]
[334377996,1723006232337,-2500.0,0.000106,2]
[334377997,1723006232346,-29481.17403375,0.000107,2]
[334377998,1723006232678,-5180.24440452,0.000107,2]
[334377999,1723006232695,-21424.43762948,0.000107,2]
[334378000,1723006232711,-925.89493766,0.000107,2]
[334378034,1723006238329,-3331.41697924,0.000107,2]
[334378035,1723006238388,-3175.40155286,0.000107,2]
[334378036,1723006238401,-8916.93004554,0.000107,2]
[334378037,1723006238453,-532.46044442,0.000107,2]
[334378038,1723006238508,-5406.64754168,0.000107,2]
[334378039,1723006238567,-21625.39243085,0.000107,2]
[334378040,1723006238577,-26039.72335964,0.000107,2]
[334378198,1723006240270,-348.34787844,0.000107,2]
[334378211,1723006240383,-5654.27756192,0.000107,2]
[334378213,1723006240395,-263.69,0.00010719,2]
[334378215,1723006240404,-427.2,0.00010736,2]
[334378217,1723006240414,-12817.79331306,0.000108,2]
[334378219,1723006240424,-572.8,0.00010858,2]
[334378221,1723006240433,-2346.81233,0.0001089,2]
[334378223,1723006240442,-1005.0,0.000109,2]
[334378225,1723006240451,-1000.0,0.000109,2]
[334378227,1723006240461,-323.31176038,0.000109,2]
[334378229,1723006240469,-1000.0,0.000109,2]
[334378231,1723006240479,-1000.0,0.000109,2]
[334378233,1723006240488,-1000.0,0.000109,2]
[334378235,1723006240497,-1000.0,0.000109,2]
[334378237,1723006240506,-1000.0,0.000109,2]
[334378239,1723006240516,-500.0,0.00010958,2]
[334378241,1723006240525,-500.90069217,0.00010958,2]
[334378243,1723006240534,-500.0,0.00010958,2]
[334378245,1723006240543,-440.56336103,0.00010958,2]
[334378500,1723006243237,-64.33717411,0.00010958,2]
[334378502,1723006243247,-500.0,0.00010958,2]
[334378504,1723006243257,-500.88172177,0.00010958,2]
[334378506,1723006243267,-500.0,0.00010958,2]
[334378508,1723006243275,-359.37787169,0.00010958,2]
[334378511,1723006243287,-140.62212831,0.00010958,2]
[334378513,1723006243297,-500.0,0.00010958,2]
[334378515,1723006243306,-294.49787169,0.00010958,2]
[334378525,1723006243399,-205.50212831,0.00010958,2]
[334378527,1723006243408,-500.0,0.00010958,2]
[334378529,1723006243417,-500.0,0.00010958,2]
[334378531,1723006243427,-500.0,0.00010958,2]
[334378533,1723006243437,-487.29166037,0.00010958,2]
[334378535,1723006243446,-500.0,0.00010958,2]
[334378537,1723006243456,-500.0,0.00010958,2]
[334378539,1723006243465,-500.0,0.00010958,2]
[334378541,1723006243475,-500.0,0.00010958,2]
[334378543,1723006243485,-500.0,0.00010958,2]
[334378545,1723006243494,-500.0,0.00010958,2]
[334378547,1723006243503,-198.29364045,0.00010958,2]
[334378549,1723006243512,-341.26038187,0.00010958,2]
[334378598,1723006243982,-158.73961813,0.00010958,2]
[334378600,1723006243991,-500.0,0.00010958,2]
[334378602,1723006244001,-171.32287489,0.00010958,2]
[334378604,1723006244012,-328.67712511,0.00010958,2]
[334378606,1723006244022,-500.0,0.00010958,2]
[334378608,1723006244031,-500.0,0.00010958,2]
[334378610,1723006244042,-500.0,0.00010958,2]
[334378612,1723006244052,-500.0,0.00010958,2]
[334378614,1723006244062,-500.0,0.00010958,2]
[334378616,1723006244072,-500.0,0.00010958,2]
[334378618,1723006244081,-500.0,0.00010958,2]
[334378619,1723006244091,-299.77,0.00010958,2]
[334378620,1723006244100,-248.77050695,0.00010958,2]
[334378621,1723006244110,-500.0,0.00010958,2]
[334378622,1723006244119,-500.0,0.00010958,2]
[334378623,1723006244128,-500.0,0.00010958,2]
[334378624,1723006244138,-200.0,0.00010959,2]
[334378625,1723006244147,-250.0,0.00010959,2]
[334378626,1723006244156,-836.8033547,0.00010959,2]
[334378657,1723006249917,-891.94150928,0.00010959,2]
[334378658,1723006249933,-271.25513602,0.00010959,2]
[334378659,1723006249942,-195.81307937,0.00010972,2]
[334378660,1723006249951,-200.0,0.00010973,2]
[334378661,1723006249960,-476.00512581,0.00010974,2]
[334378662,1723006249972,-132.50387419,0.00010974,2]
[334378663,1723006249982,-310.32009555,0.00010994,2]
[334378664,1723006250058,1000.0,0.00024658,30]
[334378666,1723006348604,1963.1048,9.536e-05,2]
[334378667,1723006417715,217.41357036,9.536e-05,2]
[334378668,1723006419022,1000.0,0.00024,30]
[334378669,1723006423846,282.56913587,9.536e-05,2]
[334378671,1723006678251,939.48,8.219e-05,2]
[334378672,1723006770781,1111.64,9.561e-05,2]
[334378673,1723006816738,2290.29726606,9.561e-05,2]
[334378674,1723006818449,345.47505909,9.561e-05,2]
[334378675,1723006849168,1270.16200915,9.561e-05,2]
[334378676,1723006903770,515.032164,9.526e-05,2]
[334378678,1723007000708,200.0,0.00024989,120]
[334378679,1723007001167,158.43,7.702e-05,2]
[334378681,1723007119634,929.13,8.219e-05,2]
[334378692,1723007192272,150.0,8.219e-05,2]
[334378701,1723007300726,-566.0,9.574e-05,2]
[334378702,1723007300750,-4633.5955273,9.574e-05,2]
[334378703,1723007300773,-439.74827644,9.574e-05,2]
[334378704,1723007300796,-300.0,9.614e-05,2]
[334378705,1723007300822,-13661.6,9.615e-05,2]
[334378706,1723007300846,-618.77,9.615e-05,2]
[334378707,1723007300871,-5152.5360383,9.615e-05,2]
[334378708,1723007300900,-231.75015796,9.623e-05,2]
[334378709,1723007309547,-24.56984204,9.623e-05,2]
[334378710,1723007309573,-313.18,9.632e-05,2]
[334378711,1723007309600,-172.53,9.636e-05,2]
[334378712,1723007309625,-200.0,9.674e-05,2]
[334378713,1723007309652,-1119.57,9.696e-05,2]
[334378714,1723007309683,-217.05,9.731e-05,2]
[334378715,1723007309709,-499.99,9.731e-05,2]
[334378716,1723007309735,-4866.88085152,9.731e-05,2]
[334378717,1723007309765,-1872.53026808,9.731e-05,2]
[334378720,1723007432626,-19.24306421,9.888e-05,2]
[334378721,1723007432638,-130.75693579,9.888e-05,2]
[334378722,1723007432648,-246.52078821,0.0001,2]
[334378723,1723007432660,-689.30241408,0.0001,2]
[334378724,1723007432672,-66.72284371,0.0001,2]
[334378725,1723007432682,-293.62832565,0.00010046,2]
[334378726,1723007432695,-346.570884,0.00010046,2]
[334378727,1723007432707,-359.80079035,0.00010046,2]
[334378728,1723007432719,-929.13,0.00010455,2]
[334378729,1723007432729,-300.0,0.00010799,2]
[334378730,1723007432739,-150.0,0.00010799,2]
[334378731,1723007432749,-61614.8356,0.000108,2]
[334378732,1723007432759,-2668.99252828,0.000108,2]
[334378733,1723007432770,-313.18,0.00010836,2]
[334378734,1723007432780,-500.0,0.00010858,2]
[334378735,1723007432791,-10837.8726,0.00010858,2]
[334378736,1723007432801,-1000.0,0.00010858,2]
[334378737,1723007432812,-361.5,0.00010858,2]
[334378738,1723007432823,-374.31748,0.0001088,2]
[334378739,1723007432833,-2500.0,0.00010899,2]
[334378740,1723007432849,-1006.0,0.000109,2]
[334378741,1723007432860,-1000.0,0.00010945,2]
[334378742,1723007432871,-1000.0,0.00010945,2]
[334378743,1723007432882,-1000.0,0.00010945,2]
[334378746,1723007432893,-1000.0,0.00010945,2]
[334378749,1723007432904,-1000.0,0.00010945,2]
[334378752,1723007432914,-1000.0,0.00010945,2]
[334378756,1723007432925,-1000.0,0.00010945,2]
[334378758,1723007432935,-1000.0,0.00010945,2]
[334378761,1723007432945,-1000.0,0.00010945,2]
[334378763,1723007432954,-1000.0,0.00010945,2]
[334378764,1723007432964,-1000.0,0.00010945,2]
[334378766,1723007432974,-1000.0,0.00010945,2]
[334378768,1723007432984,-1000.0,0.00010945,2]
[334378770,1723007432994,-1000.0,0.00010945,2]
[334378772,1723007433004,-1000.0,0.00010945,2]
[334378774,1723007433019,-1000.0,0.00010945,2]
[334378776,1723007433031,-1000.0,0.00010945,2]
[334378778,1723007433042,-1000.0,0.00010945,2]
[334378780,1723007433053,-1000.0,0.00010945,2]
[334378781,1723007433065,-1000.0,0.00010945,2]
[334378782,1723007433076,-1000.0,0.00010945,2]
[334378783,1723007433087,-1000.0,0.00010945,2]
[334378784,1723007433099,-1000.0,0.00010945,2]
[334378785,1723007433109,-1000.0,0.00010945,2]
[334378786,1723007433119,-1000.0,0.00010945,2]
[334378787,1723007433130,-1000.0,0.00010945,2]
[334378788,1723007433141,-1000.0,0.00010945,2]
[334378789,1723007433152,-1000.0,0.00010945,2]
[334378790,1723007433162,-1000.0,0.00010945,2]
[334378791,1723007433172,-1000.0,0.00010945,2]
[334378792,1723007433184,-740.1332,0.00010945,2]
[334378793,1723007433194,-250.0,0.00010959,2]
[334378794,1723007433205,-200.0,0.00010973,2]
[334378795,1723007433215,-150.0,0.00010974,2]
[334378796,1723007433225,-1955.67694,0.00010994,2]
[334378797,1723007433235,-500.0,0.00010998,2]
[334378798,1723007433246,-270.40994855,0.00010998,2]
[334378799,1723007433256,-504.69219882,0.00010998,2]
[334378800,1723007433266,-501.66952166,0.00010998,2]
[334378801,1723007433277,-501.53973111,0.00010998,2]
[334378802,1723007433287,-500.0,0.00010998,2]
[334378803,1723007433297,-246.58,0.00010998,2]
[334378804,1723007433307,-500.0,0.00010998,2]
[334378805,1723007433317,-501.46517872,0.00010998,2]
[334378806,1723007433328,-501.14464137,0.00010998,2]
[334378807,1723007433337,-500.0,0.00010998,2]
[334378808,1723007433347,-500.0,0.00010998,2]
[334378809,1723007433357,-500.0,0.00010998,2]
[334378810,1723007433368,-224.86,0.00010998,2]
[334378811,1723007433378,-500.0,0.00010998,2]
[334378812,1723007433388,-156.64,0.00010998,2]
[334378813,1723007433398,-500.0,0.00010998,2]
[334378814,1723007433408,-569.78,0.00010998,2]
[334378815,1723007433418,-500.0,0.00010998,2]
[334378816,1723007433427,-536.33812951,0.00010998,2]
[334378817,1723007433437,-500.24361234,0.00010998,2]
[334378818,1723007433448,-198.49790006,0.00010998,2]
[334378819,1723007433457,-500.0,0.00010998,2]
[334378820,1723007433467,-500.0,0.00010998,2]
[334378821,1723007433477,-498.96673427,0.00010998,2]
[334378822,1723007433486,-500.0,0.00010998,2]
[334378823,1723007433497,-503.61702345,0.00010998,2]
[334378824,1723007433507,-500.0,0.00010998,2]
[334378825,1723007433521,-498.7622998,0.00010998,2]
[334378826,1723007433530,-500.0,0.00010998,2]
[334378827,1723007433540,-500.0,0.00010998,2]
[334378828,1723007433550,-500.0,0.00010998,2]
[334378829,1723007433560,-502.24733527,0.00010998,2]
[334378830,1723007433571,-500.0,0.00010998,2]
[334378831,1723007433581,-500.8910878,0.00010998,2]
[334378832,1723007433591,-500.0,0.00010998,2]
[334378833,1723007433601,-203.44,0.00010998,2]
[334378834,1723007433611,-500.86657323,0.00010998,2]
[334378835,1723007433621,-500.0,0.00010998,2]
[334378836,1723007433634,-500.0,0.00010998,2]
[334378837,1723007433644,-500.0,0.00010998,2]
[334378838,1723007433654,-316.1175737,0.00010998,2]
[334378839,1723007433664,-500.0,0.00010998,2]
[334378840,1723007433674,-500.0,0.00010998,2]
[334378841,1723007433684,-625.0,0.00010998,2]
[334378842,1723007433694,-625.0,0.00010998,2]
[334378843,1723007433704,-500.0,0.00010998,2]
[334378844,1723007433714,-500.0,0.00010998,2]
[334378845,1723007433725,-500.0,0.00010998,2]
[334378846,1723007433735,-500.0,0.00010998,2]
[334378847,1723007433745,-500.0,0.00010998,2]
[334378848,1723007433755,-564.47472079,0.00010998,2]
[334378849,1723007433768,-587.55,0.00010998,2]
[334378850,1723007433779,-500.0,0.00010998,2]
[334378851,1723007433788,-500.0,0.00010998,2]
[334378852,1723007433798,-502.74,0.00010998,2]
[334378853,1723007433808,-502.74,0.00010998,2]
[334378854,1723007434401,-1000.0,0.00010999,2]
[334378855,1723007434419,-1000.0,0.00010999,2]
[334378856,1723007434428,-1000.0,0.00010999,2]
[334378857,1723007434438,-1000.0,0.00010999,2]
[334378858,1723007434448,-1000.0,0.00010999,2]
[334378859,1723007434457,-1421.46211389,0.00010999,2]
[334378860,1723007434466,-1000.0,0.00010999,2]
[334378861,1723007434476,-68538.45349339,0.00010999,2]
[334378862,1723007434663,-443.1143383,0.00010999,2]
[334378863,1723007434676,-440.00877613,0.00010999,2]
[334378864,1723007434687,-650.40807414,0.00010999,2]
[334378865,1723007438481,-323.31176038,0.00010899,2]
[334378866,1723007438491,-173.46982886,0.00010999,2]
[334378867,1723007438503,-485.28526725,0.00010999,2]
[334378868,1723007438517,-335.76750053,0.00010999,2]
[334378869,1723007438529,-273.3,0.00010999,2]
[334378870,1723007438600,-289.44988715,0.00010999,2]
[334378871,1723007438659,-4603.08190485,0.00010999,2]
[334378872,1723007438670,-2415.34269166,0.00010999,2]
[334378897,1723007440564,-3230.5506448,0.00010999,2]
[334378898,1723007440576,-590.73325855,0.00010999,2]
[334378899,1723007440587,-252.05309055,0.00010999,2]
[334378900,1723007440710,-540.07,0.00010999,2]
[334378901,1723007440806,-863.3110572,0.00010999,2]
[334379012,1723007443384,-2365.81996177,0.00010999,2]
[334379031,1723007447366,-1140.36219378,0.00010998,2]
[334379032,1723007447479,-237.99780622,0.00010998,2]
[334379033,1723007447489,-1378.36,0.00010998,2]
[334379034,1723007447498,-3894.92369378,0.00010999,2]
[334379035,1723007447539,-23485.53364858,0.00010999,2]
[334379036,1723007447598,-1215.40701988,0.00010999,2]
[334379050,1723007592156,500.0,0.00024999,120]
[334379052,1723007624547,905.81,8.219e-05,2]
[334379056,1723007658823,168.68,9.197e-05,2]
[334379057,1723007668050,150.0,8.219e-05,2]
[334379058,1723007675642,485.47880185,8.219e-05,2]
[334379059,1723007687845,227.67484022,8.219e-05,2]
[334379060,1723007687946,5289.41488354,8.219e-05,2]
[334379065,1723007824106,40000.0,0.00025,60]
[334379066,1723007969602,500.0,0.00025,60]
[334379067,1723008075558,500.0,0.00025,60]
[334379068,1723008128840,892.71,8.219e-05,2]
[334379069,1723008141932,150.0,0.00024658,30]
[334379071,1723008320076,1889.65174817,9e-05,2]
[334379072,1723008320869,2016.51,9.549e-05,2]
[334379073,1723008355627,19263.88327577,6.94e-05,2]
[334379078,1723008490161,948.24144298,8.412e-05,2]
[334379082,1723008526103,1256.92584908,8.412e-05,2]
[334379084,1723008539841,-250.0,9.616e-05,2]
[334379085,1723008539867,-300.0,9.683e-05,2]
[334379086,1723008539892,-175.94570773,9.684e-05,2]
[334379087,1723008539919,-150.0,9.684e-05,2]
[334379088,1723008539944,-1527.95,9.685e-05,2]
[334379089,1723008539969,-4873.32344848,9.685e-05,2]
[334379090,1723008540008,-1503.97534566,9.685e-05,2]
[334379091,1723008540625,-7277.21915621,9.685e-05,2]
[334379093,1723008551190,948.24144298,8.412e-05,2]